bitfinex-derivatives/quotes_SOLF0:USTF0_20250211
["timestamp","ask_amount","ask_price","bid_price","bid_amount"]
[1739310480543,0.03203115,198.75,198.72,0.03796324]
[1739310480752,5.0322,198.74,198.72,0.03796324]
[1739310480951,0.03203115,198.75,198.72,0.03796324]
[1739310481344,5.0322,198.73,198.72,0.03796324]
[1739310482456,5.0331,198.7,198.64,5.0343]
[1739310482751,1.5549,198.76,198.61,1.5319]
[1739310483651,0.03190591,198.7,198.67,0.03832925]
[1739310484953,5.06490591,198.7,198.67,0.03832925]
[1739310485454,0.03190591,198.7,198.67,0.03832925]
[1739310485655,5.0334,198.69,198.67,0.03832925]
[1739310486149,5.0334,198.68,198.67,0.03832925]
[1739310487051,0.03190591,198.7,198.67,0.03832925]
[1739310487955,5.0334,198.68,198.67,0.03832925]
[1739310488357,5.0333,198.69,198.67,0.03832925]
[1739310488558,0.03190591,198.7,198.67,0.03832925]
[1739310490857,5.0334,198.68,198.67,0.03832925]
[1739310491054,0.03190591,198.7,198.67,0.03832925]
[1739310491558,5.06490591,198.7,198.67,0.03832925]
[1739310491856,0.03190591,198.7,198.67,0.03832925]
[1739310492052,5.06490591,198.7,198.67,0.03832925]
[1739310492759,0.03190591,198.7,198.68,5.0334]
[1739310493150,0.03190591,198.7,198.67,0.03832925]
[1739310493354,0.03190591,198.7,198.69,5.0332]
[1739310494059,21.93908422,198.84,198.69,21.93908422]
[1739310494361,2.9804,198.84,198.69,21.93908422]
[1739310494656,5.0307,198.79,198.74,5.0317]
[1739310495056,5.0309,198.78,198.74,5.0317]
[1739310495258,0.03797164,198.78,198.75,0.03778641]
[1739310495757,5.06917164,198.78,198.75,0.03778641]
[1739310495958,0.03797164,198.78,198.75,0.03778641]
[1739310496755,0.03797164,198.78,198.76,5.0313]
[1739310497463,0.03797164,198.78,198.75,0.03778641]
[1739310498963,5.06897164,198.78,198.75,0.03778641]
[1739310499463,0.03797164,198.78,198.75,0.03778641]
[1739310500958,5.0314,198.77,198.75,0.03778641]
[1739310501165,0.03797164,198.78,198.75,0.03778641]
[1739310501761,5.0314,198.76,198.75,0.03778641]
[1739310502865,0.03797164,198.78,198.75,0.03778641]
[1739310503864,5.0314,198.76,198.75,0.03778641]
[1739310504662,5.0312,198.77,198.75,0.03778641]
[1739310504864,0.03797164,198.78,198.75,0.03778641]
[1739310506868,5.06897164,198.78,198.75,0.03778641]
[1739310507164,0.03797164,198.78,198.75,0.03778641]
[1739310507968,5.0314,198.76,198.75,0.03778641]
[1739310514883,0.03797164,198.78,198.75,0.03778641]
[1739310515887,5.0313,198.77,198.75,0.03778641]
[1739310516088,0.03797164,198.78,198.75,0.03778641]
[1739310516490,5.0314,198.76,198.75,0.03778641]
[1739310522086,5.06887164,198.78,198.75,5.06928641]
[1739310523294,0.03797164,198.78,198.75,0.03778641]
[1739310525295,5.0314,198.76,198.75,0.03778641]
[1739310525602,0.03797164,198.78,198.75,0.03778641]
[1739310525897,0.03797164,198.78,198.77,5.0312]
[1739310527690,0.03797164,198.78,198.75,0.03778641]
[1739310527891,0.03797164,198.78,198.75,5.06928641]
[1739310528097,0.03797164,198.78,198.75,0.03778641]
[1739310528998,0.03797164,198.78,198.76,5.0314]
[1739310530002,0.03797164,198.78,198.77,5.0312]
[1739310531902,0.03797164,198.78,198.76,5.0314]
[1739310532603,0.03797164,198.78,198.75,0.03778641]
[1739310532802,5.0314,198.77,198.75,0.03778641]
[1739310533405,5.06897164,198.78,198.75,5.06938641]
[1739310534507,0.03797164,198.78,198.75,0.03778641]
[1739310534807,5.0312,198.77,198.75,0.03778641]
[1739310534997,0.03797164,198.78,198.75,0.03778641]
[1739310535203,5.06887164,198.78,198.75,5.06928641]
[1739310536608,0.03797164,198.78,198.76,5.0314]
[1739310537108,5.06887164,198.78,198.75,5.06938641]
[1739310538010,0.03797164,198.78,198.75,5.06938641]
[1739310538212,5.0312,198.77,198.75,5.06938641]
[1739310538910,5.0312,198.77,198.75,0.03778641]
[1739310539211,0.03797164,198.78,198.75,0.03778641]
[1739310539511,5.0314,198.76,198.75,0.03778641]
[1739310539911,18.70131112,198.76,198.75,0.03778641]
[1739310540704,13.66991112,198.76,198.7,5.0329]
[1739310540910,5.0323,198.73,198.7,5.0329]
[1739310541618,5.0322,198.73,198.69,5.0331]
[1739310541911,0.03583294,198.73,198.69,5.06992901]
[1739310542308,0.03583294,198.73,198.69,0.03682901]
[1739310543113,0.03583294,198.73,198.7,5.0329]
[1739310543817,5.06813294,198.73,198.7,5.0329]
[1739310544417,13.82035312,198.73,198.71,5.0327]
[1739310544918,8.78805312,198.73,198.69,0.03682901]
[1739310545121,8.75222018,198.7,198.69,0.03682901]
[1739310545517,8.75222018,198.72,198.69,0.03682901]
[1739310546710,13.78472018,198.72,198.69,0.03682901]
[1739310546917,13.78472018,198.72,198.69,5.07002901]
[1739310547522,5.0327,198.71,198.69,0.03682901]
[1739310548720,8.75222018,198.72,198.69,0.03682901]
[1739310548926,5.0329,198.7,198.69,0.03682901]
[1739310549424,13.78512018,198.7,198.69,0.03682901]
[1739310550016,13.78472018,198.72,198.69,0.03682901]
[1739310550522,8.75222018,198.72,198.69,0.03682901]
[1739310550725,0.03583294,198.73,198.69,0.03682901]
[1739310551224,5.06803294,198.73,198.7,13.78492018]
[1739310551427,5.06803294,198.73,198.7,5.0327]
[1739310552026,5.06803294,198.73,198.69,5.06992901]
[1739310552225,5.0325,198.72,198.69,5.06992901]
[1739310552632,13.78472018,198.72,198.69,5.06992901]
[1739310552829,13.78512018,198.7,198.69,0.03682901]
[1739310558035,8.75222018,198.66,198.61,92.60268162]
[1739310558237,8.75222018,198.66,198.62,5.0348]
[1739310558830,8.75222018,198.66,198.61,92.60268162]
[1739310559035,8.78439145,198.66,198.62,0.03813905]
[1739310559633,8.78439145,198.66,198.63,5.0346]
[1739310560034,8.78439145,198.66,198.62,0.03813905]
[1739310560836,0.03217127,198.66,198.64,5.0343]
[1739310562639,5.06617127,198.66,198.63,5.0347]
[1739310562838,13.81839145,198.66,198.63,5.0347]
[1739310563042,8.78439145,198.66,198.62,0.03813905]
[1739310563235,5.0347,198.63,198.62,0.03813905]
[1739310565241,13.78672018,198.64,198.62,0.03813905]
[1739310566140,5.0347,198.63,198.62,0.03813905]
[1739310568343,5.06617127,198.66,198.62,0.03813905]
[1739310568943,5.06617127,198.66,198.63,5.0347]
[1739310570745,0.03217127,198.66,198.62,0.03813905]
[1739310570939,5.0342,198.65,198.62,5.07283905]
[1739310571337,13.78642018,198.65,198.62,5.07283905]
[1739310572744,13.78642018,198.65,198.63,5.0347]
[1739310572939,8.75222018,198.65,198.63,5.0347]
[1739310573241,0.03217127,198.66,198.62,0.03813905]
[1739310574141,5.0342,198.65,198.62,0.03813905]
[1739310574346,13.78642018,198.65,198.62,0.03813905]
[1739310575139,13.78642018,198.65,198.62,5.07303905]
[1739310576048,8.75222018,198.65,198.62,0.03813905]
[1739310576250,8.75222018,198.63,198.62,0.03813905]
[1739310577750,13.78692018,198.63,198.62,0.03813905]
[1739310578542,8.75222018,198.63,198.52,18.53104369]
[1739310578850,8.75222018,198.59,198.52,18.53104369]
[1739310579049,8.75222018,198.59,198.52,15.50244369]
[1739310579352,8.75222018,198.59,198.52,8.75222018]
[1739310579747,0.03662789,198.57,198.54,0.03851624]
[1739310580950,8.75222018,198.55,198.54,0.03851624]
[1739310584857,0.03662789,198.57,198.54,8.79073642]
[1739310585555,0.03662789,198.57,198.55,5.0365]
[1739310586152,0.03662789,198.57,198.54,0.03851624]
[1739310586350,8.75222018,198.55,198.54,0.03851624]
[1739310586756,13.78892018,198.55,198.54,0.03851624]
[1739310588658,13.82534807,198.57,198.54,0.03851624]
[1739310588857,8.78884807,198.57,198.54,0.03851624]
[1739310589256,8.75222018,198.55,198.54,0.03851624]
[1739310589459,8.75222018,198.55,198.48,8.75222018]
[1739310589657,5.0376,198.52,198.48,5.0384]
[1739310590560,5.0375,198.52,198.48,5.0384]
[1739310590755,5.06975037,198.52,198.48,5.07689323]
[1739310591258,0.03225037,198.52,198.49,5.0382]
[1739310592157,0.03225037,198.52,198.48,0.03849323]
[1739310592358,0.03225037,198.52,198.48,8.79071341]
[1739310592657,0.03225037,198.52,198.5,8.75222018]
[1739310593159,5.037e-05,198.52,198.51,5.0377]
[1739310603060,5.037e-05,198.52,198.5,5.0379]
[1739310603462,8.75222018,198.51,198.48,0.03849323]
[1739310605167,5.037e-05,198.52,198.5,8.75222018]
[1739310605571,5.037e-05,198.52,198.51,5.0377]
[1739310606771,5.037e-05,198.52,198.49,5.0381]
[1739310607069,5.03755037,198.52,198.48,8.79071341]
[1739310607569,5.03755037,198.52,198.48,0.03849323]
[1739310607767,5.03755037,198.52,198.48,5.07699323]
[1739310607961,5.037e-05,198.52,198.48,5.07699323]
[1739310608372,5.037e-05,198.52,198.48,0.03849323]
[1739310608574,5.03755037,198.52,198.48,0.03849323]
[1739310608875,5.037e-05,198.52,198.48,0.03849323]
[1739310610470,5.037e-05,198.52,198.51,5.0377]
[1739310611974,5.037e-05,198.52,198.5,5.0377]
[1739310612276,5.037e-05,198.52,198.48,0.03849323]
[1739310615874,5.0378,198.51,198.48,0.03849323]
[1739310616176,5.037e-05,198.52,198.48,0.03849323]
[1739310616572,13.70391254,198.5,198.48,0.03849323]
[1739310616773,13.70391254,198.5,198.4,92.70211075]
[1739310616967,5.039,198.46,198.41,5.0401]
[1739310617373,18.74211254,198.5,198.45,5.0391]
[1739310617772,5.0382,198.5,198.4,106.40602329]
[1739310617977,0.03370507,198.49,198.46,0.03346973]
[1739310619180,18.74271254,198.47,198.46,0.03346973]
[1739310620177,18.74271254,198.47,198.4,92.70211075]
[1739310620178,5.0397,198.44,198.4,92.70211075]
[1739310620379,5.0397,198.44,198.38,27.00089405]
[1739310620380,13.70391254,198.44,198.38,27.00089405]
[1739310620778,13.70391254,198.44,198.39,5.0406]
[1739310621077,13.70391254,198.47,198.38,27.00089405]
[1739310621275,18.74271254,198.47,198.4,5.0405]
[1739310621577,0.03191856,198.44,198.41,0.03285147]
[1739310624577,0.03191856,198.44,198.43,5.0398]
[1739310625682,0.03191856,198.44,198.42,5.0398]
[1739310625881,0.03191856,198.44,198.41,0.03285147]
[1739310626280,0.03191856,198.44,198.42,5.0398]
[1739310627181,13.7358311,198.44,198.41,0.03285147]
[1739310627478,13.7358311,198.44,198.33,6.75022351]
[1739310627782,13.70391254,198.39,198.33,6.75022351]
[1739310627982,15.23281254,198.43,198.33,6.75022351]
[1739310628673,0.03317645,198.4,198.33,6.75022351]
[1739310629476,0.03317645,198.4,198.39,5.0408]
[1739310631291,0.03317645,198.4,198.31,13.70391254]
[1739310632290,0.03317645,198.4,198.39,5.0408]
[1739310632791,0.03317645,198.4,198.31,13.70391254]
[1739310632987,0.03317645,198.4,198.39,5.0408]
[1739310633286,0.03317645,198.4,198.31,13.70391254]
[1739310633691,0.03317645,198.4,198.38,5.0408]
[1739310634387,0.03317645,198.4,198.31,13.70391254]
[1739310634690,0.03317645,198.4,198.39,5.0408]
[1739310635991,7.645e-05,198.4,198.39,5.0408]
[1739310649898,13.71493738,198.56,198.38,0.03233065]
[1739310650098,13.71493738,198.59,198.44,13.71493738]
[1739310650300,13.71493738,198.59,198.47,13.71493738]
[1739310650500,10.0470267,198.6,198.5,13.71493738]
[1739310650892,26.78016408,198.68,198.56,13.71493738]
[1739310651096,10.0470267,198.68,198.59,13.71493738]
[1739310651593,137.63074547,198.69,198.59,13.71493738]
[1739310652301,0.03603422,198.66,198.62,0.03558875]
[1739310660508,13.71493738,198.65,198.62,0.03558875]
[1739310661502,0.03603422,198.66,198.62,0.03558875]
[1739310661809,0.03603422,198.66,198.62,13.75052613]
[1739310664710,0.03603422,198.66,198.62,0.03558875]
[1739310665409,13.71493738,198.65,198.62,0.03558875]
[1739310666205,13.71493738,198.65,198.51,4.6362]
[1739310666405,13.71493738,198.57,198.47,13.71493738]
[1739310666607,13.71493738,198.57,198.46,8.30412351]
[1739310667310,0.03771405,198.53,198.5,0.03210468]
[1739310667502,13.71493738,198.6,198.5,0.03210468]
[1739310667503,13.71493738,198.51,198.5,0.03210468]
[1739310670812,18.75263738,198.51,198.5,0.03210468]
[1739310671008,18.75263738,198.51,198.4,92.69367539]
[1739310671009,13.71493738,198.51,198.4,92.69367539]
[1739310671211,13.71493738,198.46,198.4,92.69367539]
[1739310671512,18.75403738,198.46,198.4,92.69367539]
[1739310672012,18.75403738,198.46,198.32,18.31073738]
[1739310672212,0.03736519,198.45,198.32,18.31073738]
[1739310672512,18.75403738,198.46,198.32,18.31073738]
[1739310672712,0.03534596,198.4,198.32,18.31073738]
[1739310674613,0.03534596,198.4,198.32,4.5958]
[1739310674812,0.03534596,198.4,198.29,40.71583143]
[1739310675011,13.75028334,198.4,198.29,40.71583143]
[1739310675213,13.75028334,198.4,198.27,3.1006]
[1739310675514,13.71493738,198.4,198.27,3.1006]
[1739310675714,0.03336163,198.35,198.27,3.1006]
[1739310675906,0.03336163,198.35,198.32,13.71493738]
[1739310676112,1.555,198.42,198.32,13.71493738]
[1739310677217,0.03549246,198.39,198.35,0.0342152]
[1739310678313,0.03549246,198.39,198.35,13.74915258]
[1739310678514,3.0903,198.49,198.38,13.71493738]
[1739310679715,0.03747678,198.45,198.42,0.03785348]
[1739310681810,13.71493738,198.44,198.42,0.03785348]
[1739310682017,5.0398,198.43,198.42,0.03785348]
[1739310682413,13.71493738,198.44,198.29,20.46516089]
[1739310682609,13.71493738,198.4,198.29,6.75022351]
[1739310682816,13.71493738,198.37,198.29,6.75022351]
[1739310683110,13.71493738,198.34,198.29,6.75022351]
[1739310683509,18.75793738,198.31,198.3,0.03211387]
[1739310683711,21.97958144,198.32,198.29,6.75022351]
[1739310684011,5.0431,198.3,198.29,6.75022351]
[1739310684206,23.51208144,198.32,198.19,23.68769405]
[1739310684808,0.03405084,198.27,198.19,23.68769405]
[1739310686720,5.07795084,198.27,198.19,23.68769405]
[1739310687216,5.0445,198.25,198.19,22.15109405]
[1739310687424,21.97958144,198.26,198.19,22.15109405]
[1739310687816,5.0455,198.21,198.19,22.15109405]
[1739310688121,21.97958144,198.23,198.11,1.5912]
[1739310688316,0.03546018,198.22,198.11,1.5912]
[1739310688719,5.0456,198.2,198.11,1.5912]
[1739310689121,0.03787995,198.17,198.11,1.5912]
[1739310689321,0.03787995,198.17,198.11,6.6391]
[1739310689517,0.03787995,198.17,198.11,1.5912]
[1739310689925,0.03787995,198.17,198.05,20.25067054]
[1739310690126,0.03787995,198.17,198.06,1.4641]
[1739310690322,1.5963,198.19,198.06,1.4641]
[1739310690522,0.03783302,198.13,198.06,1.4641]
[1739310691731,0.03783302,198.13,198.04,1.5963]
[1739310691923,0.03783302,198.13,198.05,5.0492]
[1739310692118,0.03783302,198.13,198.04,1.5963]
[1739310692627,0.03783302,198.13,198.06,5.0491]
[1739310693323,0.03783302,198.13,198.04,1.5963]
[1739310693627,21.97958144,198.11,197.94,75.98136956]
[1739310693821,21.97958144,198.08,197.95,21.72667054]
[1739310694021,0.03389695,198.05,197.98,5.0512]
[1739310694621,0.03389695,198.05,197.95,21.72667054]
[1739310694820,0.03389695,198.05,198.01,5.0504]
[1739310695430,0.03389695,198.05,198.0,5.0507]
[1739310696126,0.03389695,198.05,197.95,1.476]
[1739310696428,0.03389695,198.05,198.0,5.0506]
[1739310696621,0.03389695,198.05,197.95,1.476]
[1739310697028,0.03389695,198.05,197.98,5.051]
[1739310697530,0.03389695,198.05,197.99,5.0509]
[1739310698230,0.03389695,198.05,198.0,5.0507]
[1739310698526,0.03389695,198.05,197.97,21.97958144]
[1739310699232,0.03389695,198.05,198.03,5.0499]
[1739310700330,0.03389695,198.05,198.04,5.0497]
[1739310700531,21.97958144,198.11,197.95,1.476]
[1739310700725,21.97958144,198.11,198.03,0.03498288]
[1739310701524,1.6182,198.17,198.03,0.03498288]
[1739310701830,0.03277567,198.09,198.03,21.97958144]
[1739310702129,0.03277567,198.09,198.08,0.03667133]
[1739310702328,0.03277567,198.09,198.08,5.0487]
[1739310703130,1.6182,198.17,198.05,1.46]
[1739310703729,6.6646,198.17,198.09,5.0484]
[1739310704128,0.03369032,198.15,198.11,0.03761815]
[1739310706137,15.13,198.38,198.13,21.97958144]
[1739310706439,3.0525,198.32,198.13,25.67958144]
[1739310707232,0.03544292,198.23,198.2,0.03681087]
[1739310707435,1.4674,198.32,198.17,1.4641]
[1739310707632,0.03504218,198.23,198.2,0.03838325]
[1739310707834,1.4674,198.32,198.19,21.97958144]
[1739310708240,1.4674,198.32,198.24,5.0446]
[1739310708538,1.4674,198.32,198.19,21.97958144]
[1739310709039,0.03380084,198.27,198.24,0.03505744]
[1739310711142,22.01338228,198.27,198.24,0.03505744]
[1739310711434,22.01338228,198.27,198.12,20.25067054]
[1739310711638,21.97958144,198.24,198.15,5.0466]
[1739310712138,21.97958144,198.24,198.14,5.047]
[1739310712336,21.97958144,198.24,198.12,20.25067054]
[1739310712534,0.03716071,198.21,198.17,0.03341529]
[1739310712733,21.97958144,198.27,198.15,5.0468]
[1739310712939,0.03197162,198.21,198.17,0.0379169]
[1739310713437,0.03197162,198.21,198.17,5.0843169]
[1739310713840,0.03197162,198.21,198.17,0.0379169]
[1739310718245,22.01155306,198.21,198.17,0.0379169]
[1739310718443,5.0456,198.2,198.17,0.0379169]
[1739310719145,0.03197162,198.21,198.17,0.0379169]
[1739310721037,5.07747162,198.21,198.17,0.0379169]
[1739310721235,0.03197162,198.21,198.17,0.0379169]
[1739310725447,5.0457,198.2,198.17,0.0379169]
[1739310725646,0.03197162,198.21,198.17,0.0379169]
[1739310726043,0.03197162,198.21,198.17,5.0843169]
[1739310726246,0.03197162,198.21,198.17,0.0379169]
[1739310726943,15.13,198.32,198.17,0.0379169]
[1739310726944,21.97958144,198.34,198.17,22.01749834]
[1739310727149,15.13,198.37,198.26,5.044]
[1739310727150,5.0419,198.35,198.26,5.044]
[1739310727350,21.97958144,198.37,198.21,1.5371]
[1739310728150,0.03591289,198.31,198.27,5.08009641]
[1739310728448,0.03591289,198.31,198.27,0.03629641]
[1739310729253,0.03591289,198.31,198.28,5.0435]
[1739310730152,0.03591289,198.31,198.29,5.0433]
[1739310730745,0.03591289,198.31,198.27,0.03629641]
[1739310731048,0.03591289,198.31,198.28,5.0435]
[1739310731655,0.03591289,198.31,198.27,0.03629641]
[1739310731957,0.03591289,198.31,198.27,5.08009641]
[1739310732758,0.03591289,198.31,198.27,0.03629641]
[1739310733764,1.63621289,198.31,198.27,0.03629641]
[1739310734065,5.0433,198.3,198.27,0.03629641]
[1739310734366,1.63621289,198.31,198.27,0.03629641]
[1739310734663,0.03591289,198.31,198.27,0.03629641]
[1739310735762,5.0433,198.3,198.27,0.03629641]
[1739310736065,0.03591289,198.31,198.27,0.03629641]
[1739310736266,5.0431,198.3,198.27,0.03629641]
[1739310736667,0.03591289,198.31,198.27,0.03629641]
[1739310736864,5.0434,198.29,198.27,0.03629641]
[1739310737268,0.03591289,198.31,198.27,0.03629641]
[1739310737566,5.0431,198.3,198.27,0.03629641]
[1739310737762,0.03591289,198.31,198.27,0.03629641]
[1739310738263,21.97958144,198.28,198.17,1.5206]
[1739310738468,21.97958144,198.28,198.16,1.5799]
[1739310738669,5.0447,198.24,198.17,5.0462]
[1739310738867,21.97958144,198.28,198.15,20.25067054]
[1739310738868,21.97958144,198.25,198.15,20.25067054]
[1739310739164,21.97958144,198.25,198.19,5.0457]
[1739310739369,21.97958144,198.28,198.15,20.25067054]
[1739310739562,0.03378119,198.24,198.2,0.03820591]
[1739310740166,5.07838119,198.24,198.2,0.03820591]
[1739310740665,0.03378119,198.24,198.2,0.03820591]
[1739310741665,5.07838119,198.24,198.2,0.03820591]
[1739310742366,5.0449,198.23,198.2,0.03820591]
[1739310742567,0.03378119,198.24,198.2,0.03820591]
[1739310744863,0.03378119,198.24,198.08,20.25067054]
[1739310744864,21.97958144,198.21,198.08,20.25067054]
[1739310745068,21.97958144,198.15,198.08,20.25067054]
[1739310745462,21.97958144,198.1,198.08,20.25067054]
[1739310745664,21.97958144,198.1,198.09,135.00447031]
[1739310746168,21.97958144,198.1,198.07,168.75558789]
[1739310746562,21.97958144,198.1,198.07,167.66974027]
[1739310746766,5.0484,198.09,198.07,167.66974027]
[1739310747772,21.97958144,198.1,198.07,167.66974027]
[1739310747972,0.03659674,198.11,198.07,167.66974027]
[1739310748872,0.03659674,198.11,198.06,0.03424772]
[1739310752072,5.08459674,198.11,198.06,0.03424772]
[1739310752476,5.0482,198.1,198.06,0.03424772]
[1739310752665,21.97958144,198.1,198.06,0.03424772]
[1739310753075,5.0485,198.09,198.06,0.03424772]
[1739310754265,21.97958144,198.1,198.06,0.03424772]
[1739310755175,21.97958144,198.07,198.06,0.03424772]
[1739310755376,27.02848144,198.07,198.06,0.03424772]
[1739310759380,27.02848144,198.07,197.93,1.5539]
[1739310760576,0.03859234,198.02,197.93,1.5539]
[1739310763580,0.03859234,198.02,197.95,13.76855037]
[1739310766089,0.03859234,198.02,197.93,1.5539]
[1739310770490,0.03859234,198.02,197.99,5.0509]
[1739310771089,0.03859234,198.02,197.93,1.5539]
[1739310771290,0.03859234,198.02,197.98,5.051]
[1739310771789,0.03859234,198.02,197.99,5.0509]
[1739310772593,0.03859234,198.02,197.93,1.5539]
[1739310772788,0.03859234,198.02,197.95,13.76855037]
[1739310772990,13.76855037,198.07,197.95,13.76855037]
[1739310774190,0.03866582,198.03,197.99,0.03836885]
[1739310777896,5.08866582,198.03,197.99,0.03836885]
[1739310778192,13.76855037,198.01,197.99,0.03836885]
[1739310778498,13.76855037,197.98,197.91,5.0529]
[1739310779197,13.76855037,197.98,197.87,3.0341]
[1739310779398,0.03443016,197.95,197.87,3.0341]
[1739310779998,0.03443016,197.95,197.88,97.9719134]
[1739310780501,0.03443016,197.95,197.89,5.0533]
[1739310780700,0.03443016,197.95,197.88,92.9183134]
[1739310780994,0.03443016,197.95,197.92,5.0525]
[1739310781191,0.03443016,197.95,197.89,13.76855037]
[1739310782099,0.03443016,197.95,197.89,5.0535]
[1739310782301,0.03443016,197.95,197.88,92.9183134]
[1739310783700,0.03443016,197.95,197.89,5.0535]
[1739310784004,0.03443016,197.95,197.88,92.9183134]
[1739310784399,13.80298053,197.95,197.88,92.9183134]
[1739310785201,13.76855037,197.92,197.88,92.9183134]
[1739310785404,13.76855037,197.92,197.87,1.4643]
[1739310786304,13.76855037,197.92,197.83,5.055]
[1739310786606,13.76855037,197.92,197.82,1.4859]
[1739310786906,0.0340741,197.89,197.82,1.4859]
[1739310787505,0.0340741,197.89,197.83,13.76855037]
[1739310787699,13.76855037,197.98,197.9,5.0532]
[1739310787904,13.76855037,198.01,197.89,13.76855037]
[1739310788104,13.76855037,198.01,197.9,3.1192]
[1739310788797,0.03679928,197.97,197.94,5.08630896]
[1739310788997,0.03679928,197.97,197.94,0.03430896]
[1739310789402,0.03679928,197.97,197.95,5.0519]
[1739310789707,0.03679928,197.97,197.94,0.03430896]
[1739310800921,0.03679928,197.97,197.96,5.0517]
[1739310801621,0.03679928,197.97,197.95,5.0519]
[1739310801821,0.03679928,197.97,197.94,0.03430896]
[1739310803919,0.03679928,197.97,197.94,5.08650896]
[1739310804619,0.03679928,197.97,197.96,5.0517]
[1739310806221,0.03679928,197.97,197.95,5.0519]
[1739310806624,0.03679928,197.97,197.96,5.0517]
[1739310807315,0.03679928,197.97,197.95,5.0519]
[1739310809128,0.03679928,197.97,197.96,5.0517]
[1739310810127,0.03679928,197.97,197.95,5.052]
[1739310810622,0.03679928,197.97,197.94,0.03430896]
[1739310810822,0.03679928,197.97,197.96,5.0517]
[1739310812426,0.03679928,197.97,197.94,5.08650896]
[1739310812726,0.03679928,197.97,197.94,0.03430896]
[1739310813117,0.03679928,197.97,197.96,5.0517]
[1739310813717,13.76855037,198.04,197.98,5.0511]
[1739310814027,13.76855037,198.07,197.95,13.76855037]
[1739310814233,13.76855037,198.07,197.92,13.76855037]
[1739310814730,13.76855037,198.04,197.92,13.76855037]
[1739310815021,0.03799986,198.01,197.98,0.03462659]
[1739310816927,0.03799986,198.01,197.98,5.08582659]
[1739310817131,0.03799986,198.01,197.98,0.03462659]
[1739310818126,0.03799986,198.01,197.98,5.08582659]
[1739310818328,0.03799986,198.01,197.98,0.03462659]
[1739310819632,13.76855037,198.1,197.98,0.03462659]
[1739310819827,15.36355037,198.13,198.0,13.76855037]
[1739310820029,15.36355037,198.13,198.01,1.4829]
[1739310820833,0.03352092,198.09,198.06,5.0492]
[1739310821935,0.03352092,198.09,198.05,0.0332866]
[1739310824931,13.76855037,198.07,198.05,0.0332866]
[1739310826336,18.81755037,198.07,198.05,0.0332866]
[1739310827036,5.0492,198.06,197.97,5.0514]
[1739310827232,13.76855037,198.07,197.94,3.1093]
[1739310827632,18.81765037,198.07,197.98,5.0512]
[1739310828229,0.03358561,198.04,198.01,0.03591453]
[1739310830735,13.80213598,198.04,198.01,0.03591453]
[1739310831038,18.85203598,198.04,198.01,0.03591453]
[1739310835840,13.80213598,198.04,198.01,0.03591453]
[1739310838846,0.03358561,198.04,198.01,0.03591453]
[1739310839839,0.03358561,198.04,198.01,5.08611453]
[1739310840046,0.03358561,198.04,198.01,0.03591453]
[1739310842343,0.03358561,198.04,198.01,5.08631453]
[1739310842540,0.03358561,198.04,198.01,0.03591453]
[1739310844747,8.81197863,198.03,198.01,0.03591453]
[1739310846050,0.03358561,198.04,198.01,0.03591453]
[1739310847451,8.81197863,198.03,198.01,0.03591453]
[1739310852457,0.03358561,198.04,198.01,0.03591453]
[1739310852661,0.03358561,198.04,198.02,8.81197863]
[1739310853158,0.03358561,198.04,198.03,5.0499]
[1739310853459,8.81197863,198.09,198.02,10.42107863]
[1739310853760,8.81197863,198.13,198.06,8.81197863]
[1739310853958,8.81197863,198.15,198.08,8.81197863]
[1739310854162,8.81197863,198.15,198.12,5.0476]
[1739310854351,8.81197863,198.17,198.12,5.0476]
[1739310854557,0.03332829,198.15,198.12,0.03609763]
[1739310855051,0.03332829,198.15,198.12,8.84807626]
[1739310855253,0.03332829,198.15,198.14,8.81197863]
[1739310855655,0.03332829,198.15,198.14,5.0471]
[1739310856456,13.74633701,198.24,198.16,5.0465]
[1739310856655,13.74633701,198.24,198.13,1.4964]
[1739310856955,13.74633701,198.21,198.13,1.4964]
[1739310857558,0.03889587,198.19,198.15,0.03439801]
[1739310860564,13.74633701,198.18,198.15,0.03439801]
[1739310864366,5.0464,198.17,198.15,0.03439801]
[1739310864567,15.35883701,198.18,198.07,6.535]
[1739310864773,13.74633701,198.14,198.07,6.535]
[1739310864965,13.74633701,198.11,198.05,64.02817407]
[1739310865666,13.74633701,198.11,198.0,1.5091]
[1739310865870,0.03785531,198.1,198.06,0.03842914]
[1739310875576,8.80877343,198.08,198.06,0.03842914]
[1739310875872,8.84662874,198.1,198.06,0.03842914]
[1739310878775,8.80877343,198.08,198.06,0.03842914]
[1739310886684,5.0489,198.07,198.06,0.03842914]
[1739310886884,8.80877343,198.08,197.96,8.80877343]
[1739310887087,8.80877343,198.08,197.94,64.05795142]
[1739310887088,8.80877343,198.01,197.94,72.86672485]
[1739310887889,8.80877343,198.01,197.97,5.0512]
[1739310888084,0.03737985,197.99,197.97,5.0512]
[1739310888285,8.84615328,197.99,197.96,0.03700006]
[1739310890886,8.84615328,197.99,197.96,5.08870006]